{"text_format":"1","workbook":"xlsx","n_sheets":14,"sheets":["Cover","Info","Results","E01","E02","E03","E04","E05","E06","E07","E08","E09","E10","About"],"not_rendered":{"charts":11,"images":43,"macros":1,"external_links":0,"defined_names":15,"comments":0,"pivot_tables":0},"unopened":[],"bounds":{"document_bytes":16777216,"sheet_cells":100000,"rows_first":2000,"rows_last":500,"rows_between":2000,"halvings":0,"cell_chars":16384,"cell_head_chars":4096},"cells_cut":0,"cells_raw":0,"read":"whole","date_system":"1900"}

{"sheet":"Cover","index":0,"n_rows":0,"n_cols":0,"rows_kept":0,"cut":false,"hidden":false,"merged":[]}

{"sheet":"Info","index":1,"n_rows":39,"n_cols":4,"rows_kept":39,"cut":false,"hidden":false,"merged":[[38,1,38,3],[39,1,39,3],[2,1,2,2],[3,1,3,2],[4,1,4,2],[5,1,5,2],[6,1,6,2],[37,1,37,3],[31,1,31,2],[32,1,32,2],[33,1,33,2],[34,1,34,2],[35,1,35,2]]}
[]
[]
[null,"답변",null,"답변"]
[null,"도시명","도시명"]
[null,"도시형태(광역시, 기초지자체 등)","도시형태(광역시, 기초지자체 등)"]
[null,"국가","국가"]
[null,"평가일자","평가일자"]
[]
[null,"도시 정보(필수사항)","답변","답변일자"]
[null,"도시의 가장 높은 직위(시장 등)"]
[null,"도시 인구수"]
[null,"도시 면적(제곱 킬로미터)"]
[null,"인구 밀도(제곱 킬로미터 당)"]
[null,"청년층(15~24세)(%)"]
[null,"노년층(65세 이상)(%)"]
[null,"여성 세대주"]
[null,"비문맹률(%)"]
[null,"빈곤율(%)"]
[null,"가구당 평균 소득(USD)"]
[null,"외국인 거주 비율(%)"]
[null,"가장 일어날 만한 재난위험"]
[null,"가장 극심한 재난위험"]
[]
[null,"도시정보(선택사항)","답변","답변일자"]
[null,"전체 가구수"]
[null,"가구당 세대수"]
[null,"생계비(USD)"]
[null,"1인당 국가 GDP(USD)"]
[null,"지니계수"]
[null,"1인당 도시 생산량(USD)"]
[]
[null,"지자체 재난위험경감과 복원력 담당부서",null,"답변"]
[null,"스코어카드 평가를 진행할 사람이름"]
[null,"부서명"]
[null,"연락처"]
[null,"평가결과나 사례를 UNDRR 이나 파트너들과 공유할 수 있는가"]
[]
[null,"이해관계자 정보"]
[null,"이 평가를 지원하는 모든 이해관계자의 리스트를 기록해 주세요"]

{"sheet":"Results","index":2,"n_rows":221,"n_cols":13,"rows_kept":221,"cut":false,"hidden":false,"merged":[[131,2,131,5],[35,2,35,5],[36,2,36,5],[37,2,37,5],[123,2,123,5],[124,2,124,5],[125,2,125,5],[47,2,47,5],[48,2,48,5],[49,2,49,5],[50,2,50,5],[126,2,126,5],[127,2,127,5],[128,2,128,5],[129,2,129,5],[130,2,130,5],[51,2,51,5],[61,2,61,5],[62,2,62,5],[63,2,63,5],[64,2,64,5],[89,2,89,5],[85,1,85,6],[74,2,74,5],[75,2,75,5],[76,2,76,5],[77,2,77,5],[87,2,87,5],[88,2,88,5],[111,2,111,5],[98,2,98,5],[94,1,94,6],[96,2,96,5],[97,2,97,5],[106,1,106,6],[108,2,108,5],[109,2,109,5],[110,2,110,5],[99,2,99,5],[100,2,100,5],[101,2,101,5],[158,1,158,3],[134,1,134,6],[136,2,136,5],[137,2,137,5],[138,2,138,5],[139,2,139,5],[140,2,140,5],[141,2,141,5],[142,2,142,5],[146,1,146,6],[148,2,148,5],[149,2,149,5]]}
[]
[]
[]
[]
[]
[]
[]
[]
[]
[]
[]
[]
[]
[]
[]
[]
[]
[]
[]
[]
[]
[]
[]
[]
[]
[]
[]
[]
[]
[]
[]
[]
[]
[null,"필수사항 1 : 재난 복원력을 위한 조직구성 및 이행 준비"]
[]
[null,{"$f":"C175","v":"P1.1"},{"$f":"E175","v":"도시종합계획(또는 관련 전략/계획)이 센다이강령에서 제 시하는 재난위험경감을 위한 접근법을 반영하고 있는가?"},null,null,null,{"$f":"F175","v":0}]
[null,{"$f":"C176","v":"P1.2"},{"$f":"E176","v":"재난위험경감 활동을 추진하기 위한 적절한 권한 및 자원을 갖춘 주관부서가 존재하는가?"},null,null,null,{"$f":"F176","v":0}]
[null,"P1.3","도시의 다른 주요 기능들(예를 들어, 계획, 지속성, 투자 승 인, 재무와 규정준수, 지역사회 참여, 비상관리, 법규준수, 사회기반시설 관리, 의사소통 등)에 복원력이 적절하게 통 합되었는가?",null,null,null,0]
[]
[]
[]
[]
[]
[]
[]
[null,"필수사항 2 : 현재와 미래의 위험 시나리오 분석, 이해, 활용"]
[]
[null,{"$f":"C178","v":"P2.1"},{"$f":"E178","v":"도시는 직면한 주요 위험요인과 발생 가능성에 대한 지식을 보유하고 있는가?"},null,null,null,{"$f":"F178","v":0}]
[null,{"$f":"C179","v":"P2.2"},{"$f":"E179","v":"전력, 수자원, 도로 및 철도와 같은 사회기반시설을 관리하 는 도시들과 그와 관련된 다양한 공공 사업자, 다른 지역 및 정부기관과 이러한 시설에 대한 위험도에 대해 이해를 공유 하고 있는가?"},null,null,null,{"$f":"F179","v":0}]
[null,"P2.3","각 위험요인 또는 위험요인 그룹(위 참조)으로부터 도시 전 체의 노출 및 취약성에 대해합의된 시나리오가 존재하는 가?",null,null,null,0]
[null,"P2.4",{"$f":"E181","v":"다양한 시나리오에서 다른 도시와 사회기반시설들 간에 연 쇄적으로 피해가 발생할 것이라는 가능성에 대해 서로 이해 하고 있는가?"},null,null,null,0]
[null,"P2.5",{"$f":"E182","v":"정확한 위험요인 지도 및 위험도 데이터가 존재하는가? 이것들은 정기적으로 업데이트되는가?"},null,null,null,0]
[]
[]
[]
[]
[]
[]
[]
[null,"필수사항 3 : 재난 복원력을 위한 재정적 역량 강화"]
[]
[null,{"$f":"C183","v":"P3.1"},{"$f":"E183","v":"도시는 재난위험경감 활동기금을 확보할 수 있 는 모든 경로들을 인지하고 있으며 적극적으로 추진하고 있는가?"},null,null,null,{"$f":"F183","v":0}]
[null,{"$f":"C184","v":"P3.2"},{"$f":"E184","v":"도시가 지역 재난위험경감(예방, 대비, 대응, 복구)를 위해 용도가 지정된 예산, 필요한 자 원, 비상기금이 확보되어 있는가?"},null,null,null,{"$f":"F184","v":0}]
[null,"P3.3","도시의 모든 부문(사업 및 지역주민)에서 보험 의 보장범위가 어느 수준인가?",null,null,null,0]
[null,"P3.4","다양한 사업 및 사회분야에 복원력 구축을 지 원하기 위해 어떤 인센티브가 존재하는가?",null,null,null,0]
[]
[]
[]
[]
[]
[]
[]
[null,"필수사항 4 : 복원력에 강한 도시개발과 설계 추구"]
[]
[null,{"$f":"C187","v":"P4.1"},{"$f":"E187","v":"도시는 주요 위험 시나리오의 영향(예 : 경제활동, 농업생산, 인구중심 등)을 고려하여 적절히 토지이 용 구역이 설정되어 있는가?"},null,null,null,{"$f":"F187","v":0}]
[null,{"$f":"C188","v":"P4.2"},{"$f":"E188","v":"복원력 증진을 위한 새로운 도시 개발의 설계 및 개발을 통한 접근이 진행되는가?"},null,null,null,{"$f":"F188","v":0}]
[null,"P4.3","건축 법규 또는 기준이 존재하는가? 도시의 특정 한 알려진 위험요인과 위험도를 해결하는가? 이러 한 기준들이 정기적으로 업데이트 되는가?",null,null,null,0]
[null,"P4.4","토지이용구역, 건축법규 및 기준들이 광범위하게 적용되고 적절하게 시행되며 검증되는가?",null,null,null,0]
[]
[]
[]
[]
[]
[]
[]
[null,"필수사항 5 : 자연생태계가 제공하는 보호기능 강화를 위한 자연 완충재 보존"]
[]
[null,{"$f":"C191","v":"P5.1"},{"$f":"E191","v":"도시는 자연생태계가 도시에게 제공하는 기능들 (또는 서비스)을 이해하는가?"},null,null,null,{"$f":"F191","v":0}]
[null,{"$f":"C192","v":"P5.2"},{"$f":"E192","v":"친환경 사회기반시설이 주요 도시 개발과 사회기반 시설 프로젝트에서 정책적으로 추진되고 있는가?"},null,null,null,{"$f":"F192","v":0}]
[null,{"$f":"C193","v":"P5.3"},"친환경 사회기반시설이 주요 도시 개발과 사회기반 시설 프로젝트에서 정책적으로 추진되고 있는가?",null,null,null,{"$f":"F193","v":0}]
[]
[]
[]
[]
[null,"필수사항 6 : 복원력을 위한 기관역량 강화"]
[]
[null,{"$f":"C194","v":"P6.1"},{"$f":"E194","v":"도시는 행정구역 밖의 자연자본으로부터 도시에 제공되는 생태계 서비스를 인지하고 있는가? 이웃 도시와 이러한 자산의 보호 및 관리를 위해 합의 하였는가?"},null,null,null,{"$f":"F194","v":0}]
[null,{"$f":"C195","v":"P6.2"},{"$f":"E195","v":"도시는 확인된 재난 시나리 오에 대한 위험도 경감을 위 한 필요한 모든 기술과 경험 을 활용할 수 있는가?"},null,null,null,{"$f":"F195","v":0}]
[null,"P6.3","도시 복원력과 관련된 데이 터가 복원력 활동에 참여하 는 다른 기관들과 어디까지 공유되는가?",null,null,null,0]
[null,"P6.4",{"$f":"E197","v":"정부, 기업, 비정부 기구 및 지역사회를 포함하는 도시 모든 부문에 걸친 위험도와 복원력 현안을 다루는 교육 과정이 존재하는가?"},null,null,null,0]
[null,"P6.5",{"$f":"E198","v":"교육 자료는 도시에서 일반 적으로 대다수가 사용되는 언어로 작성되어 있는가?"},null,null,null,0]
[null,"P6.6","도시는 유사한 어려움에 직 면한 다른 도시로부터 적극 적으로 배우고 지식을 공유 하기 위해 노력하고 있는가?",null,null,null,0]
[]
[]
[]
[]
[null,"필수사항 7 : 복원력을 위한 사회적 역량 이해 및 강"]
[]
[null,{"$f":"C200","v":"P7.1"},{"$f":"E200","v":"재난 이전 계획과 재난 이후 대응 에 도시 지역의 민간 또는 지역사 회 조직이 참여하고 있는가?"},null,null,null,{"$f":"F200","v":0}]
[null,{"$f":"C201","v":"P7.2"},{"$f":"E201","v":"도시 내 가장 취약한 계층와 교육 을 필요로 하는 사람들에게 제공 될 정기적인 교육 프로그램이 존 재하는가?"},null,null,null,{"$f":"F201","v":0}]
[null,"P7.3","지난 18개월 이내 사업연속성 계획을 검토하여 문서화된 사업 체의 비율은 어느 정도 인가?",null,null,null,0]
[null,"P7.4",{"$f":"E203","v":"도시는 재난위험경감과 관련하 여 시민 참여와 의사소통에 얼마 나 효과적으로 대응하는가?"},null,null,null,0]
[]
[]
[]
[]
[]
[]
[]
[]
[]
[null,"필수사항 8 : 사회기반시설의 복원력 강화"]
[]
[null,{"$f":"C204","v":"P8.1"},{"$f":"E204","v":"주요 사회기반시설의 복원력이 도시의 우선 과제 인가? 도시 자체적으로 주요 사회기반시설에 대한 계획 및 전략을 구축하고 있는가?"},null,null,null,{"$f":"F204","v":0}]
[null,{"$f":"C205","v":"P8.2"},{"$f":"E205","v":"위험정보를 기반으로 한 기존의 예방적 사회기반 시설이 잘 설계되고 구축되어 있는가?"},null,null,null,{"$f":"F205","v":0}]
[null,"P8.3","예측하고 있는 재난 시나리오에 따라 두 가지 필수 서비스(식용 및 위생시설)에 대한 손실이 예상되는 가?",null,null,null,0]
[null,"P8.4",{"$f":"E207","v":"“최악의 경우” 시나리오에서 도시의 상당한 부분에 대한 주요 서비스 손실이 예상되는가? 고장이 발 생시 에너지 관련 사회기반시설은 안전한가(즉, 누 출, 감전 위험 등의 위험이 없는가)?"},null,null,null,0]
[null,"P8.5","“최악의 경우” 시나리오에서 도시의 상당한 부분에 대한 주요 서비스 손실이 예상되는가? 고장이 발 생했을 때 기반시설은 홍수, 충격 등의 위험으로 부터 안전하고, 통행할 수 있는가?",null,null,null,0]
[null,"P8.6","“최악의 경우” 시나리오에서 도시의 상당한 부분에 대한 주요 서비스 손실이 예상되는가?",null,null,null,0]
[null,"P8.7","“최악의 경우”에서 예상되는 중대한 부상을 처리할 수 있는 충분한 응급 의료 기능이 있는가?",null,null,null,0]
[null,"P8.8","“가장 일어날만 한” 시나리오와 “가장 극심한” 시나 리오에서 피해 위험이 있는 교육 시설의 비율",null,null,null,0]
[null,{"$f":"C212","v":"P8.9"},"도시는 최초 대응장비와 자산이 충분히 확보하고 있는가? 필요에 따라서는 군대 또는 민간의 지원 을 받을 수 있는 시스템이 되어 있는가?",null,null,null,0]
[]
[]
[null,"필수사항 9 : 효과적인 재난 대비와 대응력 확보"]
[]
[null,{"$f":"C213","v":"P9.1"},{"$f":"E213","v":"도시는 조기경보 및 예측에 대한 행동 계획이나 표 준 운영 절차가 있는가? 그리고 조기경보시스템 의 서비스를 받는 인구의 비율은 얼마인가?"},null,null,null,{"$f":"F213","v":0}]
[null,{"$f":"C214","v":"P9.2"},{"$f":"E214","v":"도시의 재난위험 경감, 대비 및 도시 비상상황에 대한 대응을 총괄하는 포괄적인 계획이 있는가?"},null,null,null,{"$f":"F214","v":0}]
[null,"P9.3","책임있는 재난관리 당국은 긴급한 재난발생 시나 리오에서 초기 대응에 필요한 인력을 충분히 보유 하고 있는가?",null,null,null,0]
[null,"P9.4","장비의 사용 가능성 뿐만 아니라 장비 및 공급 수 요가 명확하게 예측되어 있는가?",null,null,null,0]
[null,"P9.5","도시가 재난 발생 이후 사람들을 위한 식량 및 피 난처 제공을 지속할 수 있는가?",null,null,null,0]
[null,"P9.6","“가장 일어날만 한” 시나리오와 “가장 극심한” 시나 리오를 다루기 위해 설계된 표준운영절차를 자동 화하여 모든 기구가 참가하는 비상운영센터가 있 는가?",null,null,null,0]
[null,"P9.7",{"$f":"E219","v":"연습과 훈련에는 일반인과 전문가 모두 참여하는가?"},null,null,null,{"$f":"F219","v":0}]
[]
[]
[]
[null,"필수사항 10 : 신속한 복원과 더 나은 재건"]
[]
[null,{"$f":"C220","v":"P10.1"},{"$f":"E220","v":"경제 재가동, 사회적 측면 등을 포함한 재난 이후 복원 및 재건축 을 위한 전략이나 절차가 마련되 어 있는가?"},null,null,null,{"$f":"F220","v":0}]
[null,{"$f":"C221","v":"P10.2"},{"$f":"E221","v":"사후 평가 과정에는 실패 분석과 배운 교훈을 참조하여 재건 프로 젝트 설계 및 전달에 활용할 수 있는 기능이 포함되는가?"},null,null,null,{"$f":"F221","v":0}]
[]
[]
[]
[]
[]
[]
[]
[]
[null,{"$f":"TODAY()","v":"2021-04-15"}]
[]
[]
[null,null,"Label","Name",null,"Essential","TotalScore","MaxScore","Label"]
[null,null,"S1","1.   Organise for Disaster Resilience",null,"E1",{"$f":"SUMIFS($F$175:$F$1154,$B$175:$B$1154,F163)","v":0},{"$f":"COUNTIFS($B$175:$B$221,F163)*3","v":9},"01",null,{"$f":"SUM(G163:G172)","v":0},{"$f":"K163/K164","v":0},{"$f":"CONCATENATE(\"종합평가 점수 \",SUM(G163:G172),\" / \",SUM(H163:H172))","v":"종합평가 점수 0 / 141"}]
[null,null,"S2","2.   Identify, Understand and Use Current and Future Risk Scenarios",null,"E2",0,15,"02",null,{"$f":"SUM(H163:H172)","v":141},{"$f":"1-L163","v":1}]
[null,null,"S3","3.   Strengthen Financial Capacity for Resilience",null,"E3",0,12,"03"]
[null,null,"S4","4.   Pursue Resilient Urban Development and Design",null,"E4",0,12,"04"]
[null,null,"S5","5.   Safeguard Natural Buffers to Enhance Ecosystems’ Protective Functions",null,"E5",0,9,"05"]
[null,null,"S6","6.   Strengthen Institutional Capacity for Resilience",null,"E6",0,18,"06"]
[null,null,"S7","7.   Understand and Strengthen Societal Capacity for Resilience",null,"E7",0,12,"07"]
[null,null,"S8","8.   Increase Infrastructure Resilience",null,"E8",0,27,"08"]
[null,null,"S9","9.   Ensure Effective Disaster 대답",null,"E9",0,21,"09"]
[null,null,"S10","10. Expedite Recovery and Build Back Better",null,"E10",0,6,"10"]
[]
[null,"Section","Ref",null,"주제 / 현안","SelectedScore","ThisScore"]
[null,"E1","P1.1",null,"도시종합계획(또는 관련 전략/계획)이 센다이강령에서 제 시하는 재난위험경감을 위한 접근법을 반영하고 있는가?",{"$f":"IF(G175=\"\",0,IF(G175=0,0,4-G175))","v":0},{"$f":"'E01'!$E$7","v":0}]
[null,"E1","P1.2",null,"재난위험경감 활동을 추진하기 위한 적절한 권한 및 자원을 갖춘 주관부서가 존재하는가?",{"$f":"IF(G176=\"\",0,IF(G176=0,0,4-G176))","v":0},{"$f":"'E01'!$E$18","v":0}]
[null,"E1","P1.3",null,"도시의 다른 주요 기능들(예를 들어, 계획, 지속성, 투자 승 인, 재무와 규정준수, 지역사회 참여, 비상관리, 법규준수, 사회기반시설 관리, 의사소통 등)에 복원력이 적절하게 통 합되었는가?",0,{"$f":"'E01'!$E$29","v":0}]
[null,"E2","P2.1",null,"도시는 직면한 주요 위험요인과 발생 가능성에 대한 지식을 보유하고 있는가?",0,{"$f":"'E02'!$E$7","v":0}]
[null,"E2","P2.2",null,"전력, 수자원, 도로 및 철도와 같은 사회기반시설을 관리하 는 도시들과 그와 관련된 다양한 공공 사업자, 다른 지역 및 정부기관과 이러한 시설에 대한 위험도에 대해 이해를 공유 하고 있는가?",0,{"$f":"'E02'!$E$18","v":0}]
[null,"E2","P2.3",null,"각 위험요인 또는 위험요인 그룹(위 참조)으로부터 도시 전 체의 노출 및 취약성에 대해합의된 시나리오가 존재하는 가?",0,{"$f":"'E02'!$E$29","v":0}]
[null,"E2","P2.4",null,"다양한 시나리오에서 다른 도시와 사회기반시설들 간에 연 쇄적으로 피해가 발생할 것이라는 가능성에 대해 서로 이해 하고 있는가?",0,{"$f":"'E02'!$E$40","v":0}]
[null,"E2","P2.5",null,"정확한 위험요인 지도 및 위험도 데이터가 존재하는가? 이것들은 정기적으로 업데이트되는가?",0,{"$f":"'E02'!$E$51","v":0}]
[null,"E3","P3.1",null,"도시는 재난위험경감 활동기금을 확보할 수 있 는 모든 경로들을 인지하고 있으며 적극적으로 추진하고 있는가?",0,{"$f":"'E03'!$E$7","v":0}]
[null,"E3","P3.2",null,"도시가 지역 재난위험경감(예방, 대비, 대응, 복구)를 위해 용도가 지정된 예산, 필요한 자 원, 비상기금이 확보되어 있는가?",0,{"$f":"'E03'!$E$18","v":0}]
[null,"E3","P3.3",null,"도시의 모든 부문(사업 및 지역주민)에서 보험 의 보장범위가 어느 수준인가?",0,{"$f":"'E03'!$E$29","v":0}]
[null,"E3","P3.4",null,"다양한 사업 및 사회분야에 복원력 구축을 지 원하기 위해 어떤 인센티브가 존재하는가?",0,{"$f":"'E03'!$E$40","v":0}]
[null,"E4","P4.1",null,"도시는 주요 위험 시나리오의 영향(예 : 경제활동, 농업생산, 인구중심 등)을 고려하여 적절히 토지이 용 구역이 설정되어 있는가?",0,{"$f":"'E04'!$E$7","v":0}]
[null,"E4","P4.2",null,"복원력 증진을 위한 새로운 도시 개발의 설계 및 개발을 통한 접근이 진행되는가?",0,{"$f":"'E04'!$E$18","v":0}]
[null,"E4","P4.3",null,"건축 법규 또는 기준이 존재하는가? 도시의 특정 한 알려진 위험요인과 위험도를 해결하는가? 이러 한 기준들이 정기적으로 업데이트 되는가?",0,{"$f":"'E04'!$E$18","v":0}]
[null,"E4","P4.4",null,"토지이용구역, 건축법규 및 기준들이 광범위하게 적용되고 적절하게 시행되며 검증되는가?",0,{"$f":"'E04'!$E$40","v":0}]
[null,"E5","P5.1",null,"도시는 자연생태계가 도시에게 제공하는 기능들 (또는 서비스)을 이해하는가?",0,{"$f":"'E05'!$E$7","v":0}]
[null,"E5","P5.2",null,"친환경 사회기반시설이 주요 도시 개발과 사회기반 시설 프로젝트에서 정책적으로 추진되고 있는가?",0,{"$f":"'E05'!$E$18","v":0}]
[null,"E5","P5.3",null,"친환경 사회기반시설이 주요 도시 개발과 사회기반 시설 프로젝트에서 정책적으로 추진되고 있는가?",0,{"$f":"'E05'!$E$29","v":0}]
[null,"E6","P6.1",null,"도시는 행정구역 밖의 자연자본으로부터 도시에 제공되는 생태계 서비스를 인지하고 있는가? 이웃 도시와 이러한 자산의 보호 및 관리를 위해 합의 하였는가?",0,{"$f":"'E06'!$E$7","v":0}]
[null,"E6","P6.2",null,"도시는 확인된 재난 시나리 오에 대한 위험도 경감을 위 한 필요한 모든 기술과 경험 을 활용할 수 있는가?",0,{"$f":"'E06'!$E$18","v":0}]
[null,"E6","P6.3",null,"도시 복원력과 관련된 데이 터가 복원력 활동에 참여하 는 다른 기관들과 어디까지 공유되는가?",0,{"$f":"'E06'!$E$29","v":0}]
[null,"E6","P6.4",null,"정부, 기업, 비정부 기구 및 지역사회를 포함하는 도시 모든 부문에 걸친 위험도와 복원력 현안을 다루는 교육 과정이 존재하는가?",0,{"$f":"'E06'!$E$40","v":0}]
[null,"E6","P6.5",null,"교육 자료는 도시에서 일반 적으로 대다수가 사용되는 언어로 작성되어 있는가?",0,{"$f":"'E06'!$E$51","v":0}]
[null,"E6","P6.6",null,"도시는 유사한 어려움에 직 면한 다른 도시로부터 적극 적으로 배우고 지식을 공유 하기 위해 노력하고 있는가?",0,{"$f":"'E06'!$E$62","v":0}]
[null,"E7","P7.1",null,"재난 이전 계획과 재난 이후 대응 에 도시 지역의 민간 또는 지역사 회 조직이 참여하고 있는가?",0,{"$f":"'E07'!$E$7","v":0}]
[null,"E7","P7.2",null,"도시 내 가장 취약한 계층와 교육 을 필요로 하는 사람들에게 제공 될 정기적인 교육 프로그램이 존 재하는가?",0,{"$f":"'E07'!$E$18","v":0}]
[null,"E7","P7.3",null,"지난 18개월 이내 사업연속성 계획을 검토하여 문서화된 사업 체의 비율은 어느 정도 인가?",0,{"$f":"'E07'!$E$29","v":0}]
[null,"E7","P7.4",null,"도시는 재난위험경감과 관련하 여 시민 참여와 의사소통에 얼마 나 효과적으로 대응하는가?",0,{"$f":"'E07'!$E$40","v":0}]
[null,"E8","P8.1",null,"주요 사회기반시설의 복원력이 도시의 우선 과제 인가? 도시 자체적으로 주요 사회기반시설에 대한 계획 및 전략을 구축하고 있는가?",0,{"$f":"'E08'!E7","v":0}]
[null,"E8","P8.2",null,"위험정보를 기반으로 한 기존의 예방적 사회기반 시설이 잘 설계되고 구축되어 있는가?",0,{"$f":"'E08'!E18","v":0}]
[null,"E8","P8.3",null,"예측하고 있는 재난 시나리오에 따라 두 가지 필수 서비스(식용 및 위생시설)에 대한 손실이 예상되는 가?",0,{"$f":"'E08'!E29","v":0}]
[null,"E8","P8.4",null,"“최악의 경우” 시나리오에서 도시의 상당한 부분에 대한 주요 서비스 손실이 예상되는가? 고장이 발 생시 에너지 관련 사회기반시설은 안전한가(즉, 누 출, 감전 위험 등의 위험이 없는가)?",0,{"$f":"'E08'!E40","v":0}]
[null,"E8","P8.5",null,"“최악의 경우” 시나리오에서 도시의 상당한 부분에 대한 주요 서비스 손실이 예상되는가? 고장이 발 생했을 때 기반시설은 홍수, 충격 등의 위험으로 부터 안전하고, 통행할 수 있는가?",0,{"$f":"'E08'!E51","v":0}]
[null,"E8","P8.6",null,"“최악의 경우” 시나리오에서 도시의 상당한 부분에 대한 주요 서비스 손실이 예상되는가?",0,{"$f":"'E08'!E62","v":0}]
[null,"E8","P8.7",null,"“최악의 경우”에서 예상되는 중대한 부상을 처리할 수 있는 충분한 응급 의료 기능이 있는가?",0,{"$f":"'E08'!E73","v":0}]
[null,"E8","P8.8",null,"“가장 일어날만 한” 시나리오와 “가장 극심한” 시나 리오에서 피해 위험이 있는 교육 시설의 비율",0,{"$f":"'E08'!E84","v":0}]
[null,"E8","P8.9",null,"도시는 최초 대응장비와 자산이 충분히 확보하고 있는가? 필요에 따라서는 군대 또는 민간의 지원 을 받을 수 있는 시스템이 되어 있는가?",0,{"$f":"'E08'!E95","v":0}]
[null,"E9","P9.1",null,"도시는 조기경보 및 예측에 대한 행동 계획이나 표 준 운영 절차가 있는가? 그리고 조기경보시스템 의 서비스를 받는 인구의 비율은 얼마인가?",0,{"$f":"'E09'!$E$7","v":0}]
[null,"E9","P9.2",null,"도시의 재난위험 경감, 대비 및 도시 비상상황에 대한 대응을 총괄하는 포괄적인 계획이 있는가?",0,{"$f":"'E09'!$E$18","v":0}]
[null,"E9","P9.3",null,"책임있는 재난관리 당국은 긴급한 재난발생 시나 리오에서 초기 대응에 필요한 인력을 충분히 보유 하고 있는가?",0,{"$f":"'E09'!$E$29","v":0}]
[null,"E9","P9.4",null,"장비의 사용 가능성 뿐만 아니라 장비 및 공급 수 요가 명확하게 예측되어 있는가?",0,{"$f":"'E09'!$E$40","v":0}]
[null,"E9","P9.5",null,"도시가 재난 발생 이후 사람들을 위한 식량 및 피 난처 제공을 지속할 수 있는가?",0,{"$f":"'E09'!$E$51","v":0}]
[null,"E9","P9.6",null,"“가장 일어날만 한” 시나리오와 “가장 극심한” 시나 리오를 다루기 위해 설계된 표준운영절차를 자동 화하여 모든 기구가 참가하는 비상운영센터가 있 는가?",0,{"$f":"'E09'!$E$62","v":0}]
[null,"E9","P9.7",null,"연습과 훈련에는 일반인과 전문가 모두 참여하는가?",0,{"$f":"'E09'!$E$73","v":0}]
[null,"E10","P10.1",null,"경제 재가동, 사회적 측면 등을 포함한 재난 이후 복원 및 재건축 을 위한 전략이나 절차가 마련되 어 있는가?",0,{"$f":"'E10'!$E$7","v":0}]
[null,"E10","P10.2",null,"사후 평가 과정에는 실패 분석과 배운 교훈을 참조하여 재건 프로 젝트 설계 및 전달에 활용할 수 있는 기능이 포함되는가?",0,{"$f":"'E10'!$E$18","v":0}]

{"sheet":"E01","index":3,"n_rows":33,"n_cols":6,"rows_kept":33,"cut":false,"hidden":false,"merged":[[16,2,16,3],[4,2,4,3],[3,2,3,3],[5,2,5,3],[6,2,9,3],[14,2,14,3],[15,2,15,3],[17,2,20,3],[25,2,25,3],[26,2,26,3],[27,2,27,3],[28,2,31,3]]}
[]
[]
[null,"P1.1 - 계획 수립"]
[null,"주제 / 현안","비고"]
[]
[null,"대답","증빙수단(설명과 증빙자료)"]
[null,null,null,null,null,{"$f":"IF(E7=1,TRUE,FALSE)","v":false}]
[null,null,null,null,null,{"$f":"IF(E7=2,TRUE,FALSE)","v":false}]
[null,null,null,null,null,{"$f":"IF(E7=3,TRUE,FALSE)","v":false}]
[null,null,null,null,null,{"$f":"IF(E7=4,TRUE,FALSE)","v":false}]
[null,"최상의 복원력을 달성하기 위한 활동계획","담당부서","추진기간"]
[]
[]
[null,"P1.2 - 조직, 협업과 참여"]
[null,"주제 / 현안","비고"]
[]
[null,"대답","증빙수단(설명과 증빙자료)"]
[null,null,null,null,null,{"$f":"IF(E18=1,TRUE,FALSE)","v":false}]
[null,null,null,null,null,{"$f":"IF(E18=2,TRUE,FALSE)","v":false}]
[null,null,null,null,null,{"$f":"IF(E18=3,TRUE,FALSE)","v":false}]
[null,null,null,null,null,{"$f":"IF(E18=4,TRUE,FALSE)","v":false}]
[null,"최상의 복원력을 달성하기 위한 활동계획","담당부서","추진기간"]
[]
[]
[null,"P1.3 - 통합"]
[null,"주제 / 현안","비고"]
[]
[null,"대답","증빙수단(설명과 증빙자료)"]
[null,null,null,null,null,{"$f":"IF(E29=1,TRUE,FALSE)","v":false}]
[null,null,null,null,null,{"$f":"IF(E29=2,TRUE,FALSE)","v":false}]
[null,null,null,null,null,{"$f":"IF(E29=3,TRUE,FALSE)","v":false}]
[null,null,null,null,null,{"$f":"IF(E29=4,TRUE,FALSE)","v":false}]
[null,"최상의 복원력을 달성하기 위한 활동계획","담당부서","추진기간"]

{"sheet":"E02","index":4,"n_rows":55,"n_cols":6,"rows_kept":55,"cut":false,"hidden":false,"merged":[[48,2,48,3],[49,2,49,3],[50,2,53,3],[14,2,14,3],[15,2,15,3],[36,2,36,3],[37,2,37,3],[38,2,38,3],[39,2,42,3],[16,2,16,3],[17,2,20,3],[25,2,25,3],[26,2,26,3],[27,2,27,3],[28,2,31,3],[3,2,3,3],[4,2,4,3],[5,2,5,3],[6,2,9,3],[47,2,47,3]]}
[]
[]
[null,"P2.1 - 위험요인 평가"]
[null,"주제 / 현안","비고"]
[]
[null,"대답","증빙수단(설명과 증빙자료)"]
[null,null,null,null,null,{"$f":"IF(E7=1,TRUE,FALSE)","v":false}]
[null,null,null,null,null,{"$f":"IF(E7=2,TRUE,FALSE)","v":false}]
[null,null,null,null,null,{"$f":"IF(E7=3,TRUE,FALSE)","v":false}]
[null,null,null,null,null,{"$f":"IF(E7=4,TRUE,FALSE)","v":false}]
[null,"최상의 복원력을 달성하기 위한 활동계획","담당부서","추진기간"]
[]
[]
[null,"P2.2 - 사회기반시설의 위험도에 대한 이해 공유"]
[null,"주제 / 현안","비고"]
[]
[null,"대답","증빙수단(설명과 증빙자료)"]
[null,null,null,null,null,{"$f":"IF(E18=1,TRUE,FALSE)","v":false}]
[null,null,null,null,null,{"$f":"IF(E18=2,TRUE,FALSE)","v":false}]
[null,null,null,null,null,{"$f":"IF(E18=3,TRUE,FALSE)","v":false}]
[null,null,null,null,null,{"$f":"IF(E18=4,TRUE,FALSE)","v":false}]
[null,"최상의 복원력을 달성하기 위한 활동계획","담당부서","추진기간"]
[]
[]
[null,"P2.3 - 노출 및 취약성에 대한 지식"]
[null,"주제 / 현안","비고"]
[]
[null,"대답","증빙수단(설명과 증빙자료)"]
[null,null,null,null,null,{"$f":"IF(E29=1,TRUE,FALSE)","v":false}]
[null,null,null,null,null,{"$f":"IF(E29=2,TRUE,FALSE)","v":false}]
[null,null,null,null,null,{"$f":"IF(E29=3,TRUE,FALSE)","v":false}]
[null,null,null,null,null,{"$f":"IF(E29=4,TRUE,FALSE)","v":false}]
[null,"최상의 복원력을 달성하기 위한 활동계획","담당부서","추진기간"]
[]
[]
[null,"P2.4 - 연쇄 피해"]
[null,"주제 / 현안","비고"]
[]
[null,"대답","증빙수단(설명과 증빙자료)"]
[null,null,null,null,null,{"$f":"IF(E40=1,TRUE,FALSE)","v":false}]
[null,null,null,null,null,{"$f":"IF(E40=2,TRUE,FALSE)","v":false}]
[null,null,null,null,null,{"$f":"IF(E40=3,TRUE,FALSE)","v":false}]
[null,null,null,null,null,{"$f":"IF(E40=4,TRUE,FALSE)","v":false}]
[null,"최상의 복원력을 달성하기 위한 활동계획","담당부서","추진기간"]
[]
[]
[null,"P2.5 - 위험도 정보의 제시 및 업데이트 과정"]
[null,"주제 / 현안","비고"]
[]
[null,"대답","증빙수단(설명과 증빙자료)"]
[null,null,null,null,null,{"$f":"IF(E51=1,TRUE,FALSE)","v":false}]
[null,null,null,null,null,{"$f":"IF(E51=2,TRUE,FALSE)","v":false}]
[null,null,null,null,null,{"$f":"IF(E51=3,TRUE,FALSE)","v":false}]
[null,null,null,null,null,{"$f":"IF(E51=4,TRUE,FALSE)","v":false}]
[null,"최상의 복원력을 달성하기 위한 활동계획","담당부서","추진기간"]

{"sheet":"E03","index":5,"n_rows":44,"n_cols":6,"rows_kept":44,"cut":false,"hidden":false,"merged":[[36,2,36,3],[37,2,37,3],[38,2,38,3],[39,2,42,3],[16,2,16,3],[17,2,20,3],[25,2,25,3],[26,2,26,3],[27,2,27,3],[28,2,31,3],[15,2,15,3],[3,2,3,3],[4,2,4,3],[5,2,5,3],[6,2,9,3],[14,2,14,3]]}
["1AECOMIBM1 "]
[]
[null,"P3.1 - 도시에 새로운 투자 유치를 위한 접근방법에 대한 지식"]
[null,"주제 / 현안","비고"]
[]
[null,"대답"]
[null,null,null,null,null,{"$f":"IF(E7=1,TRUE,FALSE)","v":false}]
[null,null,null,null,null,{"$f":"IF(E7=2,TRUE,FALSE)","v":false}]
[null,null,null,null,null,{"$f":"IF(E7=3,TRUE,FALSE)","v":false}]
[null,null,null,null,null,{"$f":"IF(E7=4,TRUE,FALSE)","v":false}]
[null,null,"담당부서","추진기간"]
[]
[]
[null,"P3.2 - 비상기금을 포함한 복원력을 위한 재정계획과 예산"]
[null,"주제 / 현안","비고"]
[]
[null,"대답"]
[null,null,null,null,null,{"$f":"IF(E18=1,TRUE,FALSE)","v":false}]
[null,null,null,null,null,{"$f":"IF(E18=2,TRUE,FALSE)","v":false}]
[null,null,null,null,null,{"$f":"IF(E18=3,TRUE,FALSE)","v":false}]
[null,null,null,null,null,{"$f":"IF(E18=4,TRUE,FALSE)","v":false}]
[null,null,"담당부서","추진기간"]
[]
[]
[null,"P3.3 - 보험"]
[]
[]
[]
[null,null,null,null,null,{"$f":"IF(E29=1,TRUE,FALSE)","v":false}]
[null,null,null,null,null,{"$f":"IF(E29=2,TRUE,FALSE)","v":false}]
[null,null,null,null,null,{"$f":"IF(E29=3,TRUE,FALSE)","v":false}]
[null,null,null,null,null,{"$f":"IF(E29=4,TRUE,FALSE)","v":false}]
[null,null,"담당부서","추진기간"]
[]
[]
[null,"P3.4 - 인센티브"]
[]
[]
[]
[null,null,null,null,null,{"$f":"IF(E40=1,TRUE,FALSE)","v":false}]
[null,null,null,null,null,{"$f":"IF(E40=2,TRUE,FALSE)","v":false}]
[null,null,null,null,null,{"$f":"IF(E40=3,TRUE,FALSE)","v":false}]
[null,null,null,null,null,{"$f":"IF(E40=4,TRUE,FALSE)","v":false}]
[null,null,"담당부서","추진기간"]

{"sheet":"E04","index":6,"n_rows":44,"n_cols":6,"rows_kept":44,"cut":false,"hidden":false,"merged":[[36,2,36,3],[37,2,37,3],[38,2,38,3],[39,2,42,3],[16,2,16,3],[17,2,20,3],[25,2,25,3],[26,2,26,3],[27,2,27,3],[28,2,31,3],[15,2,15,3],[3,2,3,3],[4,2,4,3],[5,2,5,3],[6,2,9,3],[14,2,14,3]]}
[]
[]
[null,"P4.1 - 토지이용구역 설정"]
[null,"주제 / 현안","비고"]
[]
[null,"대답","증빙수단(설명과 증빙자료)"]
[null,null,null,null,null,{"$f":"IF(E7=1,TRUE,FALSE)","v":false}]
[null,null,null,null,null,{"$f":"IF(E7=2,TRUE,FALSE)","v":false}]
[null,null,null,null,null,{"$f":"IF(E7=3,TRUE,FALSE)","v":false}]
[null,null,null,null,null,{"$f":"IF(E7=4,TRUE,FALSE)","v":false}]
[null,"최상의 복원력을 달성하기 위한 활동계획","담당부서","추진기간"]
[]
[]
[null,"P4.2 - 새로운 도시 개발"]
[null,"주제 / 현안","비고"]
[]
[null,"대답","증빙수단(설명과 증빙자료)"]
[null,null,null,null,null,{"$f":"IF(E18=1,TRUE,FALSE)","v":false}]
[null,null,null,null,null,{"$f":"IF(E18=2,TRUE,FALSE)","v":false}]
[null,null,null,null,null,{"$f":"IF(E18=3,TRUE,FALSE)","v":false}]
[null,null,null,null,null,{"$f":"IF(E18=4,TRUE,FALSE)","v":false}]
[null,"최상의 복원력을 달성하기 위한 활동계획","담당부서","추진기간"]
[]
[]
[null,"P4.3 - 건축 법규 및 기준"]
[null,"주제 / 현안","비고"]
[]
[null,"대답","증빙수단(설명과 증빙자료)"]
[null,null,null,null,null,{"$f":"IF(E29=1,TRUE,FALSE)","v":false}]
[null,null,null,null,null,{"$f":"IF(E29=2,TRUE,FALSE)","v":false}]
[null,null,null,null,null,{"$f":"IF(E29=3,TRUE,FALSE)","v":false}]
[null,null,null,null,null,{"$f":"IF(E29=4,TRUE,FALSE)","v":false}]
[null,"최상의 복원력을 달성하기 위한 활동계획","담당부서","추진기간"]
[]
[]
[null,"P4.4 - 토지이용구역, 건축법규와 기준 적용"]
[null,"주제 / 현안","비고"]
[]
[null,"대답","증빙수단(설명과 증빙자료)"]
[null,null,null,null,null,{"$f":"IF(E40=1,TRUE,FALSE)","v":false}]
[null,null,null,null,null,{"$f":"IF(E40=2,TRUE,FALSE)","v":false}]
[null,null,null,null,null,{"$f":"IF(E40=3,TRUE,FALSE)","v":false}]
[null,null,null,null,null,{"$f":"IF(E40=4,TRUE,FALSE)","v":false}]
[null,"최상의 복원력을 달성하기 위한 활동계획","담당부서","추진기간"]

{"sheet":"E05","index":7,"n_rows":33,"n_cols":6,"rows_kept":33,"cut":false,"hidden":false,"merged":[[28,2,31,3],[3,2,3,3],[4,2,4,3],[5,2,5,3],[6,2,9,3],[14,2,14,3],[15,2,15,3],[16,2,16,3],[17,2,20,3],[25,2,25,3],[26,2,26,3],[27,2,27,3]]}
[]
[]
[null,"P5.1 - 생태계 서비스 기능의 인지와 이해"]
[null,"주제 / 현안","비고"]
[]
[null,"대답","증빙수단(설명과 증빙자료)"]
[null,null,null,null,null,{"$f":"IF(E7=1,TRUE,FALSE)","v":false}]
[null,null,null,null,null,{"$f":"IF(E7=2,TRUE,FALSE)","v":false}]
[null,null,null,null,null,{"$f":"IF(E7=3,TRUE,FALSE)","v":false}]
[null,null,null,null,null,{"$f":"IF(E7=4,TRUE,FALSE)","v":false}]
[null,"최상의 복원력을 달성하기 위한 활동계획","담당부서","추진기간"]
[]
[]
[null,"P5.2 - 친환경 사회기반시설의 도시 정책과 프로젝트에 통합"]
[null,"주제 / 현안","비고"]
[]
[null,"대답","증빙수단(설명과 증빙자료)"]
[null,null,null,null,null,{"$f":"IF(E18=1,TRUE,FALSE)","v":false}]
[null,null,null,null,null,{"$f":"IF(E18=2,TRUE,FALSE)","v":false}]
[null,null,null,null,null,{"$f":"IF(E18=3,TRUE,FALSE)","v":false}]
[null,null,null,null,null,{"$f":"IF(E18=4,TRUE,FALSE)","v":false}]
[null,"최상의 복원력을 달성하기 위한 활동계획","담당부서","추진기간"]
[]
[]
[null,"P5.3 - 국가 간 환경적 현안"]
[null,"주제 / 현안","비고"]
[]
[null,"대답","증빙수단(설명과 증빙자료)"]
[null,null,null,null,null,{"$f":"IF(E29=1,TRUE,FALSE)","v":false}]
[null,null,null,null,null,{"$f":"IF(E29=2,TRUE,FALSE)","v":false}]
[null,null,null,null,null,{"$f":"IF(E29=3,TRUE,FALSE)","v":false}]
[null,null,null,null,null,{"$f":"IF(E29=4,TRUE,FALSE)","v":false}]
[null,"최상의 복원력을 달성하기 위한 활동계획","담당부서","추진기간"]

{"sheet":"E06","index":8,"n_rows":66,"n_cols":6,"rows_kept":66,"cut":false,"hidden":false,"merged":[[61,2,64,3],[36,2,36,3],[37,2,37,3],[38,2,38,3],[39,2,42,3],[47,2,47,3],[48,2,48,3],[49,2,49,3],[50,2,53,3],[58,2,58,3],[59,2,59,3],[60,2,60,3],[28,2,31,3],[3,2,3,3],[4,2,4,3],[5,2,5,3],[6,2,9,3],[14,2,14,3],[15,2,15,3],[16,2,16,3],[17,2,20,3],[25,2,25,3],[26,2,26,3],[27,2,27,3]]}
[]
[]
[null,"P6.1 - 기술과 경험"]
[null,"주제 / 현안","비고"]
[]
[null,"대답","증빙수단(설명과 증빙자료)"]
[null,null,null,null,null,{"$f":"IF(E7=1,TRUE,FALSE)","v":false}]
[null,null,null,null,null,{"$f":"IF(E7=2,TRUE,FALSE)","v":false}]
[null,null,null,null,null,{"$f":"IF(E7=3,TRUE,FALSE)","v":false}]
[null,null,null,null,null,{"$f":"IF(E7=4,TRUE,FALSE)","v":false}]
[null,"최상의 복원력을 달성하기 위한 활동계획","담당부서","추진기간"]
[]
[]
[null,"P6.2 - 시민교육 및 인식"]
[null,"주제 / 현안","비고"]
[]
[null,"대답","증빙수단(설명과 증빙자료)"]
[null,null,null,null,null,{"$f":"IF(E18=1,TRUE,FALSE)","v":false}]
[null,null,null,null,null,{"$f":"IF(E18=2,TRUE,FALSE)","v":false}]
[null,null,null,null,null,{"$f":"IF(E18=3,TRUE,FALSE)","v":false}]
[null,null,null,null,null,{"$f":"IF(E18=4,TRUE,FALSE)","v":false}]
[null,"최상의 복원력을 달성하기 위한 활동계획","담당부서","추진기간"]
[]
[]
[null,"P6.3 - 데이터 공유"]
[null,"주제 / 현안","비고"]
[]
[null,"대답","증빙수단(설명과 증빙자료)"]
[null,null,null,null,null,{"$f":"IF(E29=1,TRUE,FALSE)","v":false}]
[null,null,null,null,null,{"$f":"IF(E29=2,TRUE,FALSE)","v":false}]
[null,null,null,null,null,{"$f":"IF(E29=3,TRUE,FALSE)","v":false}]
[null,null,null,null,null,{"$f":"IF(E29=4,TRUE,FALSE)","v":false}]
[null,"최상의 복원력을 달성하기 위한 활동계획","담당부서","추진기간"]
[]
[]
[null,"P6.4 -교육 전수"]
[null,"주제 / 현안","비고"]
[]
[null,"대답","증빙수단(설명과 증빙자료)"]
[null,null,null,null,null,{"$f":"IF(E40=1,TRUE,FALSE)","v":false}]
[null,null,null,null,null,{"$f":"IF(E40=2,TRUE,FALSE)","v":false}]
[null,null,null,null,null,{"$f":"IF(E40=3,TRUE,FALSE)","v":false}]
[null,null,null,null,null,{"$f":"IF(E40=4,TRUE,FALSE)","v":false}]
[null,"최상의 복원력을 달성하기 위한 활동계획","담당부서","추진기간"]
[]
[]
[null,"P6.5 - 언어"]
[null,"주제 / 현안","비고"]
[]
[null,"대답","증빙수단(설명과 증빙자료)"]
[null,null,null,null,null,{"$f":"IF(E51=1,TRUE,FALSE)","v":false}]
[null,null,null,null,null,{"$f":"IF(E51=2,TRUE,FALSE)","v":false}]
[null,null,null,null,null,{"$f":"IF(E51=3,TRUE,FALSE)","v":false}]
[null,null,null,null,null,{"$f":"IF(E51=4,TRUE,FALSE)","v":false}]
[null,"최상의 복원력을 달성하기 위한 활동계획","담당부서","추진기간"]
[]
[]
[null,"P6.6 - 다른 도시로부터 습득하기"]
[null,"주제 / 현안","비고"]
[]
[null,"대답","증빙수단(설명과 증빙자료)"]
[null,null,null,null,null,{"$f":"IF(E62=1,TRUE,FALSE)","v":false}]
[null,null,null,null,null,{"$f":"IF(E62=2,TRUE,FALSE)","v":false}]
[null,null,null,null,null,{"$f":"IF(E62=3,TRUE,FALSE)","v":false}]
[null,null,null,null,null,{"$f":"IF(E62=4,TRUE,FALSE)","v":false}]
[null,"최상의 복원력을 달성하기 위한 활동계획","담당부서","추진기간"]

{"sheet":"E07","index":9,"n_rows":44,"n_cols":6,"rows_kept":44,"cut":false,"hidden":false,"merged":[[36,2,36,3],[37,2,37,3],[38,2,38,3],[39,2,42,3],[16,2,16,3],[17,2,20,3],[25,2,25,3],[26,2,26,3],[27,2,27,3],[28,2,31,3],[15,2,15,3],[3,2,3,3],[4,2,4,3],[5,2,5,3],[6,2,9,3],[14,2,14,3]]}
[]
[]
[null,"P7.1 - 지역사회 또는 민간조직 네트워크와 교육"]
[null,"주제 / 현안","비고"]
[]
[null,"대답","증빙수단(설명과 증빙자료)"]
[null,null,null,null,null,{"$f":"IF(E7=1,TRUE,FALSE)","v":false}]
[null,null,null,null,null,{"$f":"IF(E7=2,TRUE,FALSE)","v":false}]
[null,null,null,null,null,{"$f":"IF(E7=3,TRUE,FALSE)","v":false}]
[null,null,null,null,null,{"$f":"IF(E7=4,TRUE,FALSE)","v":false}]
[null,"최상의 복원력을 달성하기 위한 활동계획","담당부서","추진기간"]
[]
[]
[null,"P7.2 - 사회 네트워크 “뒤에 아무도 남겨두지 마라”"]
[null,"주제 / 현안","비고"]
[]
[null,"대답","증빙수단(설명과 증빙자료)"]
[null,null,null,null,null,{"$f":"IF(E18=1,TRUE,FALSE)","v":false}]
[null,null,null,null,null,{"$f":"IF(E18=2,TRUE,FALSE)","v":false}]
[null,null,null,null,null,{"$f":"IF(E18=3,TRUE,FALSE)","v":false}]
[null,null,null,null,null,{"$f":"IF(E18=4,TRUE,FALSE)","v":false}]
[null,"최상의 복원력을 달성하기 위한 활동계획","담당부서","추진기간"]
[]
[]
[null,"P7.3 - 민간 부문 / 고용주"]
[null,"주제 / 현안","비고"]
[]
[null,"대답","증빙수단(설명과 증빙자료)"]
[null,null,null,null,null,{"$f":"IF(E29=1,TRUE,FALSE)","v":false}]
[null,null,null,null,null,{"$f":"IF(E29=2,TRUE,FALSE)","v":false}]
[null,null,null,null,null,{"$f":"IF(E29=3,TRUE,FALSE)","v":false}]
[null,null,null,null,null,{"$f":"IF(E29=4,TRUE,FALSE)","v":false}]
[null,"최상의 복원력을 달성하기 위한 활동계획","담당부서","추진기간"]
[]
[]
[null,"P7.4 - 시민 참여 기술"]
[null,"주제 / 현안","비고"]
[]
[null,"대답","증빙수단(설명과 증빙자료)"]
[null,null,null,null,null,{"$f":"IF(E40=1,TRUE,FALSE)","v":false}]
[null,null,null,null,null,{"$f":"IF(E40=2,TRUE,FALSE)","v":false}]
[null,null,null,null,null,{"$f":"IF(E40=3,TRUE,FALSE)","v":false}]
[null,null,null,null,null,{"$f":"IF(E40=4,TRUE,FALSE)","v":false}]
[null,"최상의 복원력을 달성하기 위한 활동계획","담당부서","추진기간"]

{"sheet":"E08","index":10,"n_rows":99,"n_cols":6,"rows_kept":99,"cut":false,"hidden":false,"merged":[[94,2,97,3],[80,2,80,3],[81,2,81,3],[82,2,82,3],[83,2,86,3],[91,2,91,3],[92,2,92,3],[93,2,93,3],[27,2,27,3],[61,2,64,3],[36,2,36,3],[37,2,37,3],[38,2,38,3],[39,2,42,3],[47,2,47,3],[48,2,48,3],[49,2,49,3],[50,2,53,3],[58,2,58,3],[59,2,59,3],[60,2,60,3],[15,2,15,3],[16,2,16,3],[17,2,20,3],[25,2,25,3],[26,2,26,3],[3,2,3,3],[4,2,4,3],[5,2,5,3],[6,2,9,3],[14,2,14,3],[69,2,69,3],[70,2,70,3],[71,2,71,3],[72,2,75,3],[28,2,31,3]]}
[]
[]
[null,"P8.1 - 주요 사회기반시설 개요"]
[null,"주제 / 현안","비고"]
[]
[null,"대답","증빙수단(설명과 증빙자료)"]
[null,null,null,null,null,{"$f":"IF(E7=1,TRUE,FALSE)","v":false}]
[null,null,null,null,null,{"$f":"IF(E7=2,TRUE,FALSE)","v":false}]
[null,null,null,null,null,{"$f":"IF(E7=3,TRUE,FALSE)","v":false}]
[null,null,null,null,null,{"$f":"IF(E7=4,TRUE,FALSE)","v":false}]
[null,"최상의 복원력을 달성하기 위한 활동계획","담당부서","추진기간"]
[]
[]
[null,"P8.2 - 예방적 사회기반시설"]
[null,"주제 / 현안","비고"]
[]
[null,"대답","증빙수단(설명과 증빙자료)"]
[null,null,null,null,null,{"$f":"IF(E18=1,TRUE,FALSE)","v":false}]
[null,null,null,null,null,{"$f":"IF(E18=2,TRUE,FALSE)","v":false}]
[null,null,null,null,null,{"$f":"IF(E18=3,TRUE,FALSE)","v":false}]
[null,null,null,null,null,{"$f":"IF(E18=4,TRUE,FALSE)","v":false}]
[null,"최상의 복원력을 달성하기 위한 활동계획","담당부서","추진기간"]
[]
[]
[null,"P8.3 - 물 – 식용 및 위생시설"]
[null,"주제 / 현안","비고"]
[]
[null,"대답","증빙수단(설명과 증빙자료)"]
[null,null,null,null,null,{"$f":"IF(E29=1,TRUE,FALSE)","v":false}]
[null,null,null,null,null,{"$f":"IF(E29=2,TRUE,FALSE)","v":false}]
[null,null,null,null,null,{"$f":"IF(E29=3,TRUE,FALSE)","v":false}]
[null,null,null,null,null,{"$f":"IF(E29=4,TRUE,FALSE)","v":false}]
[null,"최상의 복원력을 달성하기 위한 활동계획","담당부서","추진기간"]
[]
[]
[null,"P8.4 - 에너지 "]
[null,"주제 / 현안","비고"]
[]
[null,"대답","증빙수단(설명과 증빙자료)"]
[null,null,null,null,null,{"$f":"IF(E40=1,TRUE,FALSE)","v":false}]
[null,null,null,null,null,{"$f":"IF(E40=2,TRUE,FALSE)","v":false}]
[null,null,null,null,null,{"$f":"IF(E40=3,TRUE,FALSE)","v":false}]
[null,null,null,null,null,{"$f":"IF(E40=4,TRUE,FALSE)","v":false}]
[null,"최상의 복원력을 달성하기 위한 활동계획","담당부서","추진기간"]
[]
[]
[null,"P8.5 - 교통"]
[null,"주제 / 현안","비고"]
[]
[null,"대답","증빙수단(설명과 증빙자료)"]
[null,null,null,null,null,{"$f":"IF(E51=1,TRUE,FALSE)","v":false}]
[null,null,null,null,null,{"$f":"IF(E51=2,TRUE,FALSE)","v":false}]
[null,null,null,null,null,{"$f":"IF(E51=3,TRUE,FALSE)","v":false}]
[null,null,null,null,null,{"$f":"IF(E51=4,TRUE,FALSE)","v":false}]
[null,"최상의 복원력을 달성하기 위한 활동계획","담당부서","추진기간"]
[]
[]
[null,"P8.6 - 통신"]
[null,"주제 / 현안","비고"]
[]
[null,"대답","증빙수단(설명과 증빙자료)"]
[null,null,null,null,null,{"$f":"IF(E62=1,TRUE,FALSE)","v":false}]
[null,null,null,null,null,{"$f":"IF(E62=2,TRUE,FALSE)","v":false}]
[null,null,null,null,null,{"$f":"IF(E62=3,TRUE,FALSE)","v":false}]
[null,null,null,null,null,{"$f":"IF(E62=4,TRUE,FALSE)","v":false}]
[null,"최상의 복원력을 달성하기 위한 활동계획","담당부서","추진기간"]
[]
[]
[null,"P8.7 - 의료 서비스"]
[null,"주제 / 현안","비고"]
[]
[null,"대답","증빙수단(설명과 증빙자료)"]
[null,null,null,null,null,{"$f":"IF(E73=1,TRUE,FALSE)","v":false}]
[null,null,null,null,null,{"$f":"IF(E73=2,TRUE,FALSE)","v":false}]
[null,null,null,null,null,{"$f":"IF(E73=3,TRUE,FALSE)","v":false}]
[null,null,null,null,null,{"$f":"IF(E73=4,TRUE,FALSE)","v":false}]
[null,"최상의 복원력을 달성하기 위한 활동계획","담당부서","추진기간"]
[]
[]
[null,"P8.8 - 교육 시설"]
[null,"주제 / 현안","비고"]
[]
[null,"대답","증빙수단(설명과 증빙자료)"]
[null,null,null,null,null,{"$f":"IF(E84=1,TRUE,FALSE)","v":false}]
[null,null,null,null,null,{"$f":"IF(E84=2,TRUE,FALSE)","v":false}]
[null,null,null,null,null,{"$f":"IF(E84=3,TRUE,FALSE)","v":false}]
[null,null,null,null,null,{"$f":"IF(E84=4,TRUE,FALSE)","v":false}]
[null,"최상의 복원력을 달성하기 위한 활동계획","담당부서","추진기간"]
[]
[]
[null,"P8.9 - 최초 대응자산"]
[null,"주제 / 현안","비고"]
[]
[null,"대답","증빙수단(설명과 증빙자료)"]
[null,null,null,null,null,{"$f":"IF(E95=1,TRUE,FALSE)","v":false}]
[null,null,null,null,null,{"$f":"IF(E95=2,TRUE,FALSE)","v":false}]
[null,null,null,null,null,{"$f":"IF(E95=3,TRUE,FALSE)","v":false}]
[null,null,null,null,null,{"$f":"IF(E95=4,TRUE,FALSE)","v":false}]
[null,"최상의 복원력을 달성하기 위한 활동계획","담당부서","추진기간"]

{"sheet":"E09","index":11,"n_rows":77,"n_cols":6,"rows_kept":77,"cut":false,"hidden":false,"merged":[[3,2,3,3],[4,2,4,3],[5,2,5,3],[6,2,9,3],[14,2,14,3],[15,2,15,3],[16,2,16,3],[17,2,20,3],[25,2,25,3],[26,2,26,3],[27,2,27,3],[28,2,31,3],[36,2,36,3],[37,2,37,3],[38,2,38,3],[39,2,42,3],[47,2,47,3],[48,2,48,3],[49,2,49,3],[50,2,53,3],[70,2,70,3],[71,2,71,3],[72,2,75,3],[58,2,58,3],[59,2,59,3],[60,2,60,3],[61,2,64,3],[69,2,69,3]]}
[]
[]
[null,"P9.1 - 조기 경보"]
[null,"주제 / 현안","비고"]
[]
[null,"대답","증빙수단(설명과 증빙자료)"]
[null,null,null,null,null,{"$f":"IF(E7=1,TRUE,FALSE)","v":false}]
[null,null,null,null,null,{"$f":"IF(E7=2,TRUE,FALSE)","v":false}]
[null,null,null,null,null,{"$f":"IF(E7=3,TRUE,FALSE)","v":false}]
[null,null,null,null,null,{"$f":"IF(E7=4,TRUE,FALSE)","v":false}]
[null,"최상의 복원력을 달성하기 위한 활동계획","담당부서","추진기간"]
[]
[]
[null,"P9.2 - 재난 대응 계획"]
[null,"주제 / 현안","비고"]
[]
[null,"대답","증빙수단(설명과 증빙자료)"]
[null,null,null,null,null,{"$f":"IF(E18=1,TRUE,FALSE)","v":false}]
[null,null,null,null,null,{"$f":"IF(E18=2,TRUE,FALSE)","v":false}]
[null,null,null,null,null,{"$f":"IF(E18=3,TRUE,FALSE)","v":false}]
[null,null,null,null,null,{"$f":"IF(E18=4,TRUE,FALSE)","v":false}]
[null,"최상의 복원력을 달성하기 위한 활동계획","담당부서","추진기간"]
[]
[]
[null,"P9.3 - 인력 / 대응자 수요"]
[null,"주제 / 현안","비고"]
[]
[null,"대답","증빙수단(설명과 증빙자료)"]
[null,null,null,null,null,{"$f":"IF(E29=1,TRUE,FALSE)","v":false}]
[null,null,null,null,null,{"$f":"IF(E29=2,TRUE,FALSE)","v":false}]
[null,null,null,null,null,{"$f":"IF(E29=3,TRUE,FALSE)","v":false}]
[null,null,null,null,null,{"$f":"IF(E29=4,TRUE,FALSE)","v":false}]
[null,"최상의 복원력을 달성하기 위한 활동계획","담당부서","추진기간"]
[]
[]
[null,"P9.4 - 장비 및 구호품 공급 수요"]
[null,"주제 / 현안","비고"]
[]
[null,"대답","증빙수단(설명과 증빙자료)"]
[null,null,null,null,null,{"$f":"IF(E40=1,TRUE,FALSE)","v":false}]
[null,null,null,null,null,{"$f":"IF(E40=2,TRUE,FALSE)","v":false}]
[null,null,null,null,null,{"$f":"IF(E40=3,TRUE,FALSE)","v":false}]
[null,null,null,null,null,{"$f":"IF(E40=4,TRUE,FALSE)","v":false}]
[null,"최상의 복원력을 달성하기 위한 활동계획","담당부서","추진기간"]
[]
[]
[null,"P9.5 - 식량, 피난처, 생필품 및 연료 공급"]
[null,"주제 / 현안","비고"]
[]
[null,"대답","증빙수단(설명과 증빙자료)"]
[null,null,null,null,null,{"$f":"IF(E51=1,TRUE,FALSE)","v":false}]
[null,null,null,null,null,{"$f":"IF(E51=2,TRUE,FALSE)","v":false}]
[null,null,null,null,null,{"$f":"IF(E51=3,TRUE,FALSE)","v":false}]
[null,null,null,null,null,{"$f":"IF(E51=4,TRUE,FALSE)","v":false}]
[null,"최상의 복원력을 달성하기 위한 활동계획","담당부서","추진기간"]
[]
[]
[null,"P9.6 - 상호 운용성 및 연동성 작업"]
[null,"주제 / 현안","비고"]
[]
[null,"대답","증빙수단(설명과 증빙자료)"]
[null,null,null,null,null,{"$f":"IF(E62=1,TRUE,FALSE)","v":false}]
[null,null,null,null,null,{"$f":"IF(E62=2,TRUE,FALSE)","v":false}]
[null,null,null,null,null,{"$f":"IF(E62=3,TRUE,FALSE)","v":false}]
[null,null,null,null,null,{"$f":"IF(E62=4,TRUE,FALSE)","v":false}]
[null,"최상의 복원력을 달성하기 위한 활동계획","담당부서","추진기간"]
[]
[]
[null,"P9.7 - 훈련"]
[null,"주제 / 현안","비고"]
[]
[null,"대답","증빙수단(설명과 증빙자료)"]
[null,null,null,null,null,{"$f":"IF(E73=1,TRUE,FALSE)","v":false}]
[null,null,null,null,null,{"$f":"IF(E73=2,TRUE,FALSE)","v":false}]
[null,null,null,null,null,{"$f":"IF(E73=3,TRUE,FALSE)","v":false}]
[null,null,null,null,null,{"$f":"IF(E73=4,TRUE,FALSE)","v":false}]
[null,"최상의 복원력을 달성하기 위한 활동계획","담당부서","추진기간"]

{"sheet":"E10","index":12,"n_rows":22,"n_cols":6,"rows_kept":22,"cut":false,"hidden":false,"merged":[[15,2,15,3],[16,2,16,3],[17,2,20,3],[3,2,3,3],[4,2,4,3],[5,2,5,3],[6,2,9,3],[14,2,14,3]]}
[]
[]
[null,"P10.1 - 재난 이후 복구계획 – 재난 이전"]
[null,"주제 / 현안","비고"]
[]
[null,"대답","증빙수단(설명과 증빙자료)"]
[null,null,null,null,null,{"$f":"IF(E7=1,TRUE,FALSE)","v":false}]
[null,null,null,null,null,{"$f":"IF(E7=2,TRUE,FALSE)","v":false}]
[null,null,null,null,null,{"$f":"IF(E7=3,TRUE,FALSE)","v":false}]
[null,null,null,null,null,{"$f":"IF(E7=4,TRUE,FALSE)","v":false}]
[null,"최상의 복원력을 달성하기 위한 활동계획","담당부서","추진기간"]
[]
[]
[null,"P10.2 - 배운 교훈 / 학습 순환"]
[null,"주제 / 현안","비고"]
[]
[null,"대답","증빙수단(설명과 증빙자료)"]
[null,null,null,null,null,{"$f":"IF(E18=1,TRUE,FALSE)","v":false}]
[null,null,null,null,null,{"$f":"IF(E18=2,TRUE,FALSE)","v":false}]
[null,null,null,null,null,{"$f":"IF(E18=3,TRUE,FALSE)","v":false}]
[null,null,null,null,null,{"$f":"IF(E18=4,TRUE,FALSE)","v":false}]
[null,"최상의 복원력을 달성하기 위한 활동계획","담당부서","추진기간"]

{"sheet":"About","index":13,"n_rows":0,"n_cols":0,"rows_kept":0,"cut":false,"hidden":false,"merged":[]}